bitfinex-derivatives/quotes_BTCF0:USTF0_20250907
["timestamp","ask_amount","ask_price","bid_price","bid_amount"]
[1757288878339,1.1514967,111400.0,111390.0,0.10447747]
[1757288879641,1.30675005,111400.0,111390.0,0.015]
[1757288880041,1.1514967,111400.0,111390.0,0.015]
[1757288880346,0.3364967,111400.0,111390.0,0.015]
[1757288880742,1.1514967,111400.0,111390.0,0.03694]
[1757288881740,1.1494967,111400.0,111390.0,0.02194]
[1757288881944,1.1504967,111400.0,111390.0,0.02894]
[1757288882150,0.3354967,111400.0,111390.0,0.02894]
[1757288882444,1.1504967,111400.0,111390.0,0.02894]
[1757288882837,1.1504967,111400.0,111390.0,0.007]
[1757288883453,1.1504967,111400.0,111390.0,0.08752854]
[1757288883454,1.30575005,111400.0,111390.0,0.08752854]
[1757288883648,1.30575005,111400.0,111390.0,0.007]
[1757288884042,1.1504967,111400.0,111390.0,0.007]
[1757288884548,1.30575005,111400.0,111390.0,0.007]
[1757288886251,1.30575005,111400.0,111390.0,0.08752854]
[1757288886449,1.30575005,111400.0,111390.0,0.007]
[1757288887250,1.30575005,111400.0,111390.0,0.08752854]
[1757288888651,1.29699062,111400.0,111390.0,0.02098041]
[1757288889241,1.29699062,111400.0,111390.0,0.007]
[1757288889242,1.62699062,111400.0,111390.0,0.007]
[1757288889449,1.85699062,111400.0,111390.0,0.007]
[1757288891955,1.85699062,111400.0,111390.0,0.005]
[1757288892756,1.60699062,111400.0,111390.0,0.0006]
[1757288892956,1.85699062,111400.0,111390.0,0.0006]
[1757288894153,1.85599062,111400.0,111390.0,0.0006]
[1757288894353,1.85999062,111400.0,111390.0,0.0006]
[1757288894657,1.86999062,111400.0,111380.0,0.0001]
[1757288894958,0.7592767,111390.0,111380.0,0.0001]
[1757288895154,1.0692767,111390.0,111370.0,0.09336854]
[1757288895455,1.1334367,111380.0,111370.0,0.11537854]
[1757288895656,1.1334367,111380.0,111370.0,0.11527854]
[1757288897458,1.1344367,111380.0,111370.0,0.11527854]
[1757288898262,1.1404367,111380.0,111370.0,0.11527854]
[1757288900064,1.29569005,111380.0,111370.0,0.08052854]
[1757288900264,1.29569005,111380.0,111360.0,0.01284]
[1757288900468,0.3184767,111370.0,111360.0,0.09336854]
[1757288900765,0.3184767,111370.0,111360.0,0.09326854]
[1757288900964,0.3184767,111370.0,111350.0,0.09336854]
[1757288901262,1.1334767,111360.0,111350.0,0.11537854]
[1757288901465,0.15525335,111360.0,111350.0,0.11527854]
[1757288901660,0.16522335,111370.0,111360.0,0.03493]
[1757288901854,0.51078335,111370.0,111360.0,0.11557578]
[1757288902055,0.66617154,111370.0,111360.0,0.11557578]
[1757288902266,0.66617154,111370.0,111360.0,0.03941]
[1757288902267,1.14029154,111370.0,111360.0,0.03941]
[1757288902760,1.13929154,111370.0,111360.0,0.03941]
[1757288904270,1.14129154,111370.0,111360.0,0.03941]
[1757288904466,1.14129154,111370.0,111360.0,0.0174]
[1757288904666,1.14029154,111370.0,111360.0,0.0174]
[1757288904960,1.14129154,111370.0,111360.0,0.0174]
[1757288905168,1.14129154,111370.0,111360.0,0.03941]
[1757288906267,1.14627154,111370.0,111360.0,0.00448]
[1757288907564,1.30152489,111370.0,111360.0,0.00448]
[1757288907765,1.14627154,111370.0,111360.0,0.00448]
[1757288908868,1.14627154,111370.0,111350.0,0.01302]
[1757288909066,0.3184767,111360.0,111350.0,0.03503]
[1757288909371,1.1420767,111360.0,111350.0,0.03493]
[1757288909870,1.1420767,111360.0,111350.0,0.03942]
[1757288910463,0.00997,111360.0,111350.0,0.28942]
[1757288910668,1.1443967,111360.0,111350.0,0.28942]
[1757288912272,0.83489,111360.0,111350.0,0.28942]
[1757288912475,1.1453967,111360.0,111350.0,0.28942]
[1757288913575,0.01202474,111360.0,111350.0,0.28942]
[1757288913777,0.09450002,111360.0,111350.0,0.52531913]
[1757288914077,0.17963809,111360.0,111350.0,0.37006578]
[1757288914271,0.17963809,111360.0,111350.0,0.52531913]
[1757288916178,0.18760809,111360.0,111350.0,0.52531913]
[1757288916379,0.18760809,111360.0,111350.0,0.37006578]
[1757288916581,0.34286144,111360.0,111350.0,0.37006578]
[1757288917275,0.18760809,111360.0,111350.0,0.28942]
[1757288917674,0.81816524,111360.0,111350.0,0.08512106]
[1757288917876,0.81816524,111360.0,111350.0,0.00449]
[1757288919078,0.81816524,111360.0,111350.0,0.02781]
[1757288919282,0.56816524,111360.0,111350.0,0.02781]
[1757288920381,0.56816524,111360.0,111350.0,0.00449]
[1757288923883,0.56816524,111360.0,111350.0,0.02781]
[1757288924082,0.56816524,111360.0,111350.0,0.0409]
[1757288924582,0.56816524,111360.0,111350.0,0.01758]
[1757288925579,0.56816524,111360.0,111350.0,0.0409]
[1757288925882,0.56816524,111360.0,111350.0,0.03641]
[1757288926893,0.56816524,111360.0,111350.0,0.0409]
[1757288927985,0.56816524,111360.0,111350.0,0.01758]
[1757288928186,0.56816524,111360.0,111350.0,0.0409]
[1757288929893,0.10240519,111360.0,111350.0,0.0409]
[1757288930089,0.40055189,111360.0,111350.0,0.0409]
[1757288930295,1.22687189,111360.0,111350.0,0.12153106]
[1757288933294,1.64504524,111360.0,111340.0,0.08927941]
[1757288933598,0.0231,111340.0,111330.0,0.03624]
[1757288933793,1.1604067,111340.0,111330.0,0.03624]
[1757288935099,1.1624067,111340.0,111330.0,0.03624]
[1757288935294,1.1644067,111340.0,111330.0,0.03624]
[1757288936301,1.00930679,111340.0,111330.0,0.03624]
[1757288938600,1.00730679,111340.0,111330.0,0.03624]
[1757288938796,1.00930679,111340.0,111330.0,0.03624]
[1757288940098,1.00730679,111340.0,111330.0,0.03624]
[1757288940401,1.00830679,111340.0,111330.0,0.03624]
[1757288940802,0.8529,111340.0,111330.0,0.03624]
[1757288941000,1.00830679,111340.0,111330.0,0.03624]
[1757288941404,1.00830679,111340.0,111330.0,0.1492522]
[1757288941697,0.18150679,111340.0,111330.0,0.1492522]
[1757288941901,0.85302,111340.0,111330.0,0.1492522]
[1757288942105,1.00842679,111340.0,111330.0,0.1492522]
[1757288942901,0.98532679,111340.0,111330.0,0.3992522]
[1757288943305,0.82992,111340.0,111330.0,0.3992522]
[1757288943500,0.003,111340.0,111330.0,0.55465899]
[1757288944299,0.003,111340.0,111330.0,0.44164679]
[1757288945708,0.003,111340.0,111330.0,0.44694745]
[1757288945901,0.003,111340.0,111330.0,0.60235424]
[1757288946302,0.4408,111350.0,111340.0,0.03559]
[1757288946506,0.46204,111350.0,111340.0,0.03559]
[1757288947000,0.4408,111350.0,111340.0,0.44099679]
[1757288947406,0.4408,111350.0,111340.0,0.28559]
[1757288947605,0.4428,111350.0,111340.0,0.28559]
[1757288948008,0.4438,111350.0,111340.0,0.28559]
[1757288948203,0.4438,111350.0,111340.0,0.60170424]
[1757288948400,0.4438,111350.0,111340.0,0.44629745]
[1757288948695,0.4438,111350.0,111340.0,0.60170424]
[1757288948905,0.4438,111350.0,111340.0,0.44629745]
[1757288949107,0.4438,111350.0,111340.0,0.60170424]
[1757288950004,0.4298,111350.0,111340.0,0.60170424]
[1757288951309,0.003,111350.0,111340.0,0.60170424]
[1757288954012,0.003,111350.0,111340.0,0.44629745]
[1757288954212,0.003,111350.0,111340.0,1.33674424]
[1757288955708,0.003,111350.0,111340.0,0.44629745]
[1757288955912,0.003,111350.0,111340.0,1.42790424]
[1757288956518,0.003,111350.0,111340.0,1.54077589]
[1757288957014,0.003,111350.0,111340.0,1.38006844]
[1757288957812,0.003,111350.0,111340.0,1.22466165]
[1757288958012,0.003,111350.0,111340.0,1.38006844]
[1757288958513,0.003,111350.0,111340.0,1.37974844]
[1757288958814,0.003,111350.0,111340.0,1.22434165]
[1757288959008,0.003,111350.0,111340.0,1.37974844]
[1757288960308,0.003,111350.0,111340.0,0.97434165]
[1757288961008,0.003,111350.0,111340.0,1.13423844]
[1757288966514,0.003,111350.0,111340.0,1.02136679]
[1757288966708,0.003,111350.0,111340.0,1.18207424]
[1757288968017,0.17964679,111350.0,111340.0,1.02562745]
[1757288968416,0.02424,111350.0,111340.0,1.02562745]
[1757288969713,0.003,111350.0,111340.0,1.02562745]
[1757288969911,0.003,111350.0,111340.0,0.86492]
[1757288971513,0.003,111350.0,111340.0,1.02032679]
[1757288971712,0.003,111350.0,111340.0,0.86492]
[1757288972014,0.003,111350.0,111340.0,1.02032679]
[1757288973420,0.003,111350.0,111340.0,0.19548679]
[1757288973620,0.003,111350.0,111340.0,0.04008]
[1757288973821,0.02424,111350.0,111340.0,0.04008]
[1757288974821,0.02424,111350.0,111340.0,0.51944]
[1757288976625,0.17964679,111350.0,111340.0,0.51944]
[1757288977025,0.17964679,111350.0,111340.0,0.51495]
[1757288977830,0.17964679,111350.0,111340.0,0.03559]
[1757288978020,0.42964679,111350.0,111340.0,0.03559]
[1757288978421,0.42964679,111350.0,111340.0,0.04008]
[1757288979524,0.17964679,111350.0,111340.0,0.04008]
[1757288983528,0.02424,111350.0,111340.0,0.04008]
[1757288983730,0.17964679,111350.0,111340.0,0.04008]
[1757288987332,0.02424,111350.0,111340.0,0.04008]
[1757288987537,0.17964679,111350.0,111340.0,0.04008]
[1757288987740,0.02424,111350.0,111340.0,0.04008]
[1757288987934,0.15840679,111350.0,111340.0,0.04008]
[1757288988339,0.17946679,111350.0,111340.0,0.04008]
[1757288990947,0.02406,111350.0,111340.0,0.04008]
[1757288991149,0.17946679,111350.0,111340.0,0.04008]
[1757288993249,0.18746679,111350.0,111340.0,0.04008]
[1757288994449,0.18746679,111350.0,111340.0,0.04108]
[1757288995049,0.18646679,111350.0,111340.0,0.04008]
[1757288995258,0.18946679,111350.0,111340.0,0.04008]
[1757288996352,0.18940718,111350.0,111340.0,0.04008]
[1757289000358,0.03406,111350.0,111340.0,0.04008]
[1757289000554,0.18940718,111350.0,111340.0,0.04008]
[1757289003061,0.03406,111350.0,111340.0,0.04008]
[1757289003262,0.18940718,111350.0,111340.0,0.04008]
[1757289005664,0.013,111350.0,111340.0,0.31542718]
[1757289005862,0.07005045,111360.0,111350.0,0.03577]
[1757289006161,0.45978,111390.0,111380.0,0.03577]
[1757289006366,0.76512718,111390.0,111380.0,0.03577]
[1757289007064,0.76512718,111390.0,111380.0,0.04025]
[1757289007466,0.77414855,111390.0,111380.0,0.04025]
[1757289007769,0.78914855,111390.0,111380.0,0.02696]
[1757289008158,1.02514855,111390.0,111380.0,0.02796]
[1757289008566,1.84690855,111390.0,111380.0,0.04125]
[1757289009772,0.58834855,111390.0,111380.0,0.19659718]
[1757289009972,0.43300137,111390.0,111380.0,0.04125]
[1757289010164,0.58834855,111390.0,111380.0,0.15437981]
[1757289010670,0.58834855,111390.0,111380.0,0.30972699]
[1757289010972,0.43300137,111390.0,111380.0,0.15437981]
[1757289011175,0.58834855,111390.0,111380.0,0.15437981]
[1757289012170,0.58834855,111390.0,111380.0,0.30972699]
[1757289013278,0.58834855,111390.0,111380.0,0.19659718]
[1757289013777,0.58834855,111390.0,111380.0,0.04125]
[1757289014280,0.58834855,111390.0,111380.0,0.12178136]
[1757289018382,0.43300137,111390.0,111380.0,0.12178136]
[1757289018680,0.58834855,111390.0,111380.0,0.12178136]
[1757289020180,0.43300137,111390.0,111380.0,0.12178136]
[1757289020382,0.34834855,111390.0,111380.0,0.27712854]
[1757289020584,0.19300137,111390.0,111380.0,0.12178136]
[1757289020882,0.34834855,111390.0,111380.0,0.27712854]
[1757289023283,0.34834855,111390.0,111380.0,0.12178136]
[1757289023779,0.36117855,111390.0,111380.0,0.10849136]
[1757289024274,0.22117855,111390.0,111380.0,0.10849136]
[1757289027473,0.62652573,111390.0,111380.0,0.08601136]
[1757289030477,0.62652573,111390.0,111380.0,0.10849136]
[1757289030782,1.29309855,111390.0,111380.0,0.10849136]
[1757289031082,0.47117855,111390.0,111380.0,0.10849136]
[1757289031283,1.29297855,111390.0,111380.0,0.10849136]
[1757289031482,1.87512573,111390.0,111380.0,0.10849136]
[1757289033379,1.88512573,111390.0,111380.0,0.10849136]
[1757289034283,1.88504573,111390.0,111380.0,0.10849136]
[1757289035080,1.88504573,111390.0,111380.0,0.00088591]
[1757289035283,0.03596,111380.0,111370.0,0.02385413]
[1757289035477,0.023,111350.0,111340.0,0.03522]
[1757289035677,1.00010718,111350.0,111340.0,0.03512]
[1757289036184,1.00010718,111350.0,111340.0,0.19582745]
[1757289036786,1.00010718,111350.0,111340.0,0.03512]
[1757289038084,1.00410718,111350.0,111340.0,0.03612]
[1757289038280,1.07607482,111350.0,111340.0,0.03612]
[1757289038480,1.07807482,111350.0,111340.0,0.03712]
[1757289040285,1.09090482,111350.0,111340.0,0.02383]
[1757289043383,1.09090482,111350.0,111340.0,0.13666422]
[1757289044279,1.09090482,111350.0,111340.0,0.02383]
[1757289045888,1.246252,111350.0,111340.0,0.002]
[1757289046685,1.246252,111350.0,111340.0,0.02383]
[1757289047081,1.246252,111350.0,111340.0,0.002]
[1757289047983,1.246252,111350.0,111340.0,0.02383]
[1757289049288,1.246252,111350.0,111340.0,0.002]
[1757289049885,1.246252,111350.0,111340.0,0.02383]
[1757289050481,1.246252,111350.0,111340.0,0.002]
[1757289050482,2.07839918,111350.0,111340.0,0.002]
[1757289050686,0.03308,111330.0,111310.0,0.14438142]
[1757289050887,1.05909436,111320.0,111310.0,0.16611142]
[1757289051087,0.90374718,111320.0,111310.0,0.16611142]
[1757289051489,1.07201436,111320.0,111310.0,0.0399572]
[1757289051883,1.07301436,111320.0,111310.0,0.0429572]
[1757289052381,1.07301436,111320.0,111310.0,0.02483]
[1757289052783,1.17744078,111320.0,111310.0,0.02483]
[1757289053189,1.17944078,111320.0,111310.0,0.03283]
[1757289053989,1.17844078,111320.0,111310.0,0.02983]
[1757289054190,1.17944078,111320.0,111310.0,0.03083]
[1757289054391,1.17844078,111320.0,111310.0,0.005]
[1757289054590,1.33378796,111320.0,111310.0,0.005]
[1757289054787,1.33278796,111320.0,111310.0,0.004]
[1757289054987,1.17844078,111320.0,111310.0,0.005]
[1757289055192,1.33378796,111320.0,111310.0,0.005]
[1757289055490,1.17844078,111320.0,111310.0,0.005]
[1757289056283,1.33378796,111320.0,111310.0,0.005]
[1757289056888,1.33374796,111320.0,111310.0,0.005]
[1757289057489,1.33366796,111320.0,111310.0,0.005]
[1757289058491,1.02312039,111320.0,111310.0,0.005]
[1757289060095,0.20232039,111320.0,111310.0,0.005]
[1757289060389,0.03083,111310.0,111300.0,0.0001]
[1757289060588,0.03083,111310.0,111270.0,0.14408688]
[1757289060589,0.03308,111290.0,111270.0,0.14418688]
[1757289060794,0.99905397,111280.0,111270.0,0.05308266]
[1757289061701,0.17849397,111280.0,111270.0,0.05308266]
[1757289061993,0.24932081,111280.0,111270.0,0.05308266]
[1757289062184,0.61480081,111280.0,111270.0,0.05308266]
[1757289063084,0.45930684,111280.0,111270.0,0.05308266]
[1757289063287,0.61480081,111280.0,111270.0,0.05308266]
[1757289065497,0.61680081,111280.0,111270.0,0.05308266]
[1757289066094,0.61880081,111280.0,111270.0,0.05708266]
[1757289066599,0.63172081,111280.0,111270.0,0.05708266]
[1757289066787,0.63172081,111280.0,111270.0,0.04376266]
[1757289067400,0.63172081,111280.0,111270.0,0.02583]
[1757289067602,0.63172081,111280.0,111270.0,0.03434504]
[1757289069903,0.63172081,111280.0,111270.0,0.01251504]
[1757289070097,0.88172081,111280.0,111270.0,0.01251504]
[1757289070400,1.03721478,111280.0,111270.0,0.01251504]
[1757289072102,1.15199768,111280.0,111270.0,0.01251504]
[1757289074799,1.57879768,111280.0,111270.0,0.01251504]
[1757289075795,1.57879768,111280.0,111240.0,0.03174939]
[1757289076102,0.17846397,111250.0,111240.0,0.05405939]
[1757289076297,1.00002397,111250.0,111240.0,0.05405939]
[1757289077102,1.00002397,111250.0,111240.0,0.05505939]
[1757289078096,0.85461,111250.0,111240.0,0.04173939]
[1757289078295,1.00302397,111250.0,111240.0,0.05436939]
[1757289078803,1.00302397,111250.0,111240.0,0.05336939]
[1757289079002,1.00302397,111250.0,111240.0,0.04073939]
[1757289079303,1.00302397,111250.0,111240.0,0.05336939]
[1757289079505,1.01222076,111250.0,111240.0,0.05336939]
[1757289079809,1.26222076,111250.0,111230.0,0.01273]
[1757289080100,1.26222076,111250.0,111230.0,0.0001]
[1757289080101,0.34687794,111240.0,111230.0,0.0001]
[1757289080398,0.03589,111240.0,111230.0,0.02241]
[1757289080599,0.34687794,111240.0,111230.0,0.02241]
[1757289080795,0.34687794,111240.0,111230.0,0.0269]
[1757289080997,0.34687794,111240.0,111230.0,0.00449]
[1757289082093,0.34987794,111240.0,111230.0,0.00449]
[1757289083308,0.59987794,111240.0,111230.0,0.00449]
[1757289083801,0.60087794,111240.0,111230.0,0.00449]
[1757289084103,0.93087794,111240.0,111230.0,0.01841703]
[1757289084316,0.02687,111230.0,111220.0,0.0001]
[1757289084598,0.02687,111230.0,111210.0,0.0001]
[1757289084599,0.03305,111220.0,111210.0,0.0001]
[1757289084796,0.417672,111220.0,111200.0,0.01273]
[1757289084998,1.16339794,111210.0,111200.0,0.03514]
[1757289085198,1.16339794,111210.0,111200.0,0.03504]
[1757289085397,1.16339794,111210.0,111190.0,0.0001]
[1757289085597,0.17846397,111200.0,111190.0,0.03514]
[1757289085801,0.17846397,111200.0,111190.0,0.03504]
[1757289086001,0.53182397,111200.0,111190.0,0.03504]
[1757289086300,0.02297,111200.0,111190.0,0.28504]
[1757289086803,0.02497,111200.0,111190.0,0.28504]
[1757289087007,0.002,111200.0,111190.0,0.28504]
[1757289087498,0.18146397,111210.0,111200.0,0.03504]
[1757289087701,0.17846397,111210.0,111200.0,0.03504]
[1757289088606,0.03589,111200.0,111190.0,0.03514]
[1757289088806,0.80906397,111200.0,111190.0,0.03504]
[1757289089003,0.002,111210.0,111190.0,0.44053397]
[1757289089312,1.01258397,111210.0,111200.0,0.03504]
[1757289089506,0.002,111210.0,111200.0,0.03504]
[1757289089809,0.002,111210.0,111200.0,0.44053397]
[1757289090005,0.003,111210.0,111200.0,0.44053397]
[1757289090400,0.003,111210.0,111200.0,0.28504]
[1757289090596,0.003,111210.0,111200.0,0.44053397]
[1757289091710,0.003,111210.0,111200.0,0.28504]
[1757289092611,0.18077397,111210.0,111200.0,0.03504]
[1757289092800,0.02528,111210.0,111200.0,0.03504]
[1757289093306,0.18077397,111210.0,111200.0,0.03504]
[1757289094215,1.17010794,111210.0,111200.0,0.03504]
[1757289094410,1.42400794,111210.0,111190.0,0.01273]
[1757289094715,1.42400794,111210.0,111190.0,0.03535]
[1757289094716,0.17777397,111200.0,111190.0,0.03535]
[1757289094915,0.17777397,111200.0,111190.0,0.03525]
[1757289095516,0.16900014,111200.0,111190.0,0.03525]
[1757289095809,0.28236,111200.0,111190.0,0.00031]
[1757289095999,0.43985397,111200.0,111190.0,0.00031]
[1757289096202,0.43985397,111200.0,111190.0,0.01394079]
[1757289097113,0.43985397,111200.0,111190.0,0.03625079]
[1757289097313,0.43985397,111200.0,111190.0,0.01394079]
[1757289097504,0.44085397,111200.0,111190.0,0.01394079]
[1757289098010,0.44585397,111200.0,111190.0,0.01394079]
[1757289098208,0.29036,111200.0,111190.0,0.03625079]
[1757289098402,0.48381672,111200.0,111190.0,0.03625079]
[1757289098598,0.48381672,111200.0,111190.0,0.01394079]
[1757289099003,0.29036,111200.0,111190.0,0.01394079]
[1757289099212,0.48381672,111200.0,111190.0,0.01394079]
[1757289099415,1.08373672,111200.0,111190.0,0.01394079]
[1757289099911,0.88928,111200.0,111190.0,0.01406297]
[1757289100112,0.22573672,111200.0,111190.0,0.05010297]
[1757289100308,1.07581672,111200.0,111190.0,0.05010297]
[1757289101106,1.07581672,111200.0,111190.0,0.01406297]
[1757289101311,1.45581672,111200.0,111190.0,0.01406297]
[1757289102019,1.69581672,111200.0,111190.0,0.01406297]
[1757289102514,2.12261672,111200.0,111190.0,0.01406297]
[1757289105213,3.93669672,111200.0,111190.0,0.01406297]
[1757289106521,0.02228,111170.0,111160.0,0.03069959]
[1757289106716,0.02228,111170.0,111160.0,0.00449]
[1757289106717,1.0649484,111170.0,111160.0,0.00449]
[1757289107012,1.0649484,111170.0,111150.0,0.01373]
[1757289107219,0.20648672,111160.0,111150.0,0.03604]
[1757289107718,0.20648672,111160.0,111130.0,0.01373]
[1757289107917,1.06164672,111150.0,111140.0,0.03604]
[1757289108119,1.06164672,111150.0,111140.0,0.04053]
[1757289108524,0.86819,111150.0,111140.0,0.04053]
[1757289108820,1.06164672,111150.0,111140.0,0.04053]
[1757289109512,1.06164672,111150.0,111140.0,0.01822]
[1757289109707,0.20648672,111150.0,111140.0,0.04053]
[1757289110108,0.41680672,111150.0,111140.0,0.04053]
[1757289110713,0.61672672,111150.0,111140.0,0.04053]
[1757289110913,0.61872672,111150.0,111140.0,0.04053]
[1757289111322,0.89796672,111150.0,111140.0,0.04053]
[1757289111726,0.89896672,111150.0,111140.0,0.04053]
[1757289112225,0.20948672,111150.0,111140.0,0.29053]
[1757289112415,1.06684672,111150.0,111140.0,0.29053]
[1757289113116,1.06684672,111150.0,111140.0,0.04053]
[1757289113925,0.01603,111150.0,111140.0,0.04053]
[1757289114125,0.09736,111150.0,111140.0,0.29053]
[1757289114620,0.003,111150.0,111140.0,0.29053]
[1757289115221,0.003,111150.0,111140.0,0.30857654]
[1757289115723,0.00013484,111160.0,111150.0,0.03604]
[1757289116025,0.02707701,111180.0,111170.0,0.03604]
[1757289116224,0.27149672,111180.0,111170.0,0.03604]
[1757289116619,0.07804,111180.0,111170.0,0.03604]
[1757289116819,0.06,111180.0,111170.0,0.03604]
[1757289117627,0.066,111180.0,111170.0,0.03604]
[1757289118127,0.09323127,111180.0,111170.0,0.03604]
[1757289118331,0.28802758,111180.0,111170.0,0.03604]
[1757289119326,0.26079631,111180.0,111170.0,0.03604]
[1757289119827,0.26379631,111180.0,111170.0,0.03604]
[1757289120028,0.26379631,111180.0,111170.0,0.04053]
[1757289120229,0.009,111180.0,111170.0,0.29053]
[1757289120720,0.009,111180.0,111170.0,0.48532631]
[1757289120926,0.53414563,111220.0,111210.0,0.01373]
[1757289121122,0.53414563,111220.0,111210.0,0.03604]
[1757289121123,1.96446194,111220.0,111210.0,0.03604]
[1757289121926,1.97260194,111220.0,111200.0,0.01386484]
[1757289122127,0.21707631,111210.0,111200.0,0.03617484]
[1757289122326,0.23707631,111210.0,111200.0,0.03617484]
[1757289123827,0.57707631,111210.0,111200.0,0.03617484]
[1757289124525,0.38228,111210.0,111200.0,0.03617484]
[1757289124726,0.58107631,111210.0,111200.0,0.03717484]
[1757289125230,0.57707631,111210.0,111200.0,0.03717484]
[1757289125430,0.57907631,111210.0,111200.0,0.03817484]
[1757289126028,0.57807631,111210.0,111200.0,0.03817484]
[1757289126231,0.58007631,111210.0,111200.0,0.03817484]
[1757289127632,0.58007631,111210.0,111200.0,0.00213484]
[1757289127827,1.02787262,111210.0,111200.0,0.00213484]
[1757289128228,0.83307631,111210.0,111200.0,0.00213484]
[1757289132130,1.02787262,111210.0,111200.0,0.00213484]
[1757289132437,0.83307631,111210.0,111200.0,0.00213484]
[1757289133640,1.02787262,111210.0,111200.0,0.00213484]
[1757289133833,0.83307631,111210.0,111200.0,0.00213484]
[1757289134033,1.02787262,111210.0,111200.0,0.00213484]
[1757289134234,0.83307631,111210.0,111200.0,0.00213484]
[1757289135842,0.63828,111210.0,111200.0,0.02425484]
[1757289136039,0.83307631,111210.0,111200.0,0.00213484]
[1757289139047,0.58307631,111210.0,111200.0,0.00213484]
[1757289140051,0.77787262,111210.0,111200.0,0.00213484]
[1757289140349,0.85574858,111210.0,111200.0,0.00213484]
[1757289140546,1.10574858,111210.0,111200.0,0.00213484]
[1757289140744,0.63828,111210.0,111200.0,0.00213484]
[1757289140946,1.10574858,111210.0,111200.0,0.00213484]
[1757289142742,0.69692572,111210.0,111200.0,0.03768484]
[1757289143139,1.54780572,111210.0,111200.0,0.28768484]
[1757289143340,1.39198286,111210.0,111200.0,0.28768484]
[1757289143547,0.24110286,111210.0,111200.0,0.28768484]
[1757289143848,0.18110286,111210.0,111200.0,0.4435077]
[1757289144049,0.15882286,111210.0,111200.0,0.55634192]
[1757289144456,0.003,111210.0,111200.0,0.40051906]
[1757289147257,0.003,111210.0,111200.0,0.36846944]
[1757289147456,0.003,111210.0,111200.0,0.28768484]
[1757289147858,0.002,111210.0,111200.0,0.28968484]
[1757289148761,0.001,111210.0,111200.0,0.28968484]
[1757289148962,0.002,111210.0,111200.0,0.29468484]
[1757289149258,0.002,111210.0,111200.0,0.37549012]
[1757289149564,0.002,111210.0,111200.0,0.37649012]
[1757289151166,0.002,111210.0,111200.0,0.57115282]
[1757289151362,0.002,111210.0,111200.0,0.49034754]
[1757289152069,0.002,111210.0,111200.0,0.65105499]
[1757289152963,0.002,111210.0,111200.0,0.45639229]
[1757289153261,0.002,111210.0,111200.0,0.65105499]
[1757289155070,0.002,111210.0,111200.0,0.65554499]
[1757289155461,0.002,111210.0,111200.0,1.50266499]
[1757289156361,0.002,111210.0,111200.0,0.65554499]
[1757289156868,0.02492,111210.0,111200.0,1.30780229]
[1757289157067,0.02492,111210.0,111200.0,1.05780229]
[1757289157469,0.002,111210.0,111200.0,0.89709484]
[1757289158671,0.02492,111210.0,111200.0,0.89709484]
[1757289159071,0.002,111210.0,111200.0,0.89709484]
[1757289160071,0.02492,111210.0,111200.0,0.89709484]
[1757289160266,0.002,111210.0,111200.0,0.89709484]
[1757289162072,0.02492,111210.0,111200.0,0.89709484]
[1757289162673,0.002,111210.0,111200.0,0.89709484]
[1757289163868,0.002,111210.0,111200.0,1.09175754]
[1757289164371,0.002,111210.0,111200.0,0.89709484]
[1757289166274,0.15771605,111210.0,111200.0,1.05281089]
[1757289167579,0.002,111210.0,111200.0,1.20852694]
[1757289170675,0.15771605,111210.0,111200.0,1.20852694]
[1757289171179,0.15771605,111210.0,111200.0,1.36923439]
[1757289171374,0.002,111210.0,111200.0,1.36923439]
[1757289172875,0.15600883,111210.0,111200.0,1.36923439]
[1757289173077,0.15600883,111210.0,111200.0,1.05780229]
[1757289173577,0.15600883,111210.0,111200.0,1.21351834]
[1757289173776,0.15600883,111210.0,111200.0,1.05281089]
[1757289174378,0.00029278,111210.0,111200.0,1.05281089]
[1757289174572,0.15600883,111210.0,111200.0,1.05281089]
[1757289175976,0.00029278,111210.0,111200.0,1.05281089]
[1757289176176,0.15600883,111210.0,111200.0,1.05281089]
[1757289176376,0.15600883,111210.0,111200.0,1.20852694]
[1757289177580,0.15600883,111210.0,111200.0,1.41702042]
[1757289178382,0.00029278,111210.0,111200.0,1.26130624]
[1757289181081,0.00029278,111210.0,111200.0,1.10558832]
[1757289181380,0.00029278,111210.0,111200.0,1.26130624]
[1757289181982,0.00029278,111210.0,111200.0,1.05281276]
[1757289183083,0.00029278,111210.0,111200.0,0.89709484]
[1757289183383,0.00029278,111210.0,111200.0,1.05281276]
[1757289187786,0.00029278,111210.0,111200.0,0.89709484]
[1757289187988,0.00029278,111210.0,111200.0,1.05281276]
[1757289190091,0.02305278,111210.0,111200.0,0.89709484]
[1757289190288,0.00029278,111210.0,111200.0,1.05281276]
[1757289191285,0.02305278,111210.0,111200.0,0.89709484]
[1757289191490,0.02719419,111220.0,111210.0,0.03616]
[1757289191788,0.02719419,111220.0,111210.0,0.31146723]
[1757289191983,0.27719419,111220.0,111210.0,0.31146723]
[1757289192183,0.50571792,111220.0,111210.0,0.17489543]
[1757289192385,0.72571792,111220.0,111210.0,0.01295]
[1757289192685,0.88343584,111220.0,111210.0,0.11431788]
[1757289192889,0.88343584,111220.0,111210.0,0.11880788]
[1757289193095,1.72431584,111220.0,111210.0,0.11880788]
[1757289193292,1.72731584,111220.0,111210.0,0.11980788]
[1757289194192,1.72731584,111220.0,111210.0,0.00649]
[1757289194894,1.72731584,111220.0,111210.0,0.08735701]
[1757289195289,1.72731584,111220.0,111210.0,0.00649]
[1757289196484,0.88643584,111220.0,111210.0,0.00649]
[1757289196682,1.72679584,111220.0,111210.0,0.00649]
[1757289198092,1.72679584,111220.0,111210.0,0.08735701]
[1757289198291,1.72679584,111220.0,111210.0,0.00649]
[1757289201896,1.41536,111220.0,111210.0,0.00649]
[1757289202096,1.72679584,111220.0,111210.0,0.00649]
[1757289205597,0.88643584,111220.0,111210.0,0.00649]
[1757289206086,0.88643584,111220.0,111210.0,0.04265]
[1757289206288,1.72503584,111220.0,111210.0,0.04265]
[1757289206496,1.72503584,111220.0,111210.0,0.01944]
[1757289206497,0.88643584,111220.0,111210.0,0.01944]
[1757289206698,1.72515584,111220.0,111210.0,0.01944]
[1757289206896,1.72515584,111220.0,111210.0,0.00649]
[1757289211599,0.88643584,111220.0,111210.0,0.00649]
[1757289211794,1.16308,111220.0,111210.0,0.29265]
[1757289211998,1.31879792,111220.0,111210.0,0.28816]
[1757289212194,1.31879792,111220.0,111210.0,0.36902701]